fUST/lending_fUST_20250715
["ID","MTS","AMOUNT","RATE_DAILY","PERIOD"]
[372274647,1752570667965,-1499.53,0.00022465,2]
[372274648,1752570667975,-160.0,0.00022465,3]
[372274649,1752570667989,-460.0,0.00022465,2]
[372274650,1752570668000,-160.0,0.00022465,3]
[372274651,1752570668012,-157.47054806,0.00022465,3]
[372274652,1752570668022,-819.29,0.00022465,2]
[372274653,1752570668032,-460.0,0.00022465,2]
[372274654,1752570668044,-460.0,0.00022465,2]
[372274655,1752570668063,-500.0,0.00022466,2]
[372274656,1752570668078,-168.0,0.00022474,2]
[372274657,1752570668094,-670.6694919,0.00022493,2]
[372274658,1752570668111,-857.8994072,0.00022493,2]
[372274659,1752570668128,-244.0,0.00022521,7]
[372274660,1752570668144,-10591.72515431,0.0002259,7]
[372274661,1752570668163,-240.346784,0.00022603,2]
[372274662,1752570668178,-660.0,0.00022648,2]
[372274663,1752570668196,-779.28205371,0.00022653,2]
[372274664,1752570668213,-25000.0,0.00022729,2]
[372274665,1752570668227,-460.0,0.00022739,2]
[372274666,1752570668241,-151.0,0.00022739,7]
[372274667,1752570668255,-460.0,0.00022739,2]
[372274668,1752570668272,-280.20231224,0.00022739,2]
[372274669,1752570668288,-151.0,0.00022739,7]
[372274670,1752570668306,-151.0,0.00022739,7]
[372274671,1752570668322,-518.56,0.00022739,2]
[372274672,1752570668334,-460.0,0.00022739,2]
[372274673,1752570668349,-460.0,0.00022739,2]
[372274674,1752570668369,-929.48,0.00022739,2]
[372274675,1752570668385,-460.0,0.00022739,2]
[372274676,1752570668400,-460.0,0.00022739,2]
[372274677,1752570668414,-541.79,0.00022739,2]
[372274678,1752570668427,-460.0,0.00022739,2]
[372274679,1752570668440,-524.06,0.00022739,2]
[372274680,1752570668455,-734.04,0.00022739,2]
[372274681,1752570668468,-460.0,0.00022739,2]
[372274682,1752570668481,-542.32,0.00022739,2]
[372274683,1752570668494,-804.19,0.00022739,2]
[372274684,1752570668508,-898.07,0.00022739,2]
[372274685,1752570668520,-898.31,0.00022739,2]
[372274686,1752570668533,-460.0,0.00022739,2]
[372274687,1752570668546,-891.43,0.00022739,2]
[372274688,1752570668558,-460.0,0.00022739,2]
[372274689,1752570668570,-460.0,0.00022739,2]
[372274690,1752570668583,-470.67,0.00022739,2]
[372274691,1752570668595,-471.48,0.00022739,2]
[372274692,1752570668607,-460.0,0.00022739,2]
[372274693,1752570668619,-460.0,0.00022739,2]
[372274694,1752570668638,-460.0,0.00022739,2]
[372274695,1752570668658,-460.0,0.00022739,2]
[372274696,1752570668670,-1355.61,0.00022739,2]
[372274697,1752570668683,-473.44948089,0.00022739,2]
[372274698,1752570668698,-460.0,0.00022739,2]
[372274699,1752570668710,-669.96,0.00022739,2]
[372274700,1752570668724,-1420.46,0.00022739,2]
[372274701,1752570668733,-460.0,0.00022739,2]
[372274702,1752570668742,-730.02,0.00022739,2]
[372274703,1752570668752,-460.0,0.00022739,2]
[372274704,1752570668761,-460.0,0.00022739,2]
[372274705,1752570668770,-862.35,0.00022739,2]
[372274706,1752570668779,-2209.63,0.00022739,2]
[372274707,1752570668788,-460.0,0.00022739,2]
[372274708,1752570668797,-460.0,0.00022739,2]
[372274709,1752570668806,-524.72,0.00022739,2]
[372274710,1752570668816,-223.06,0.00022739,2]
[372274711,1752570668826,-460.0,0.00022739,2]
[372274712,1752570668835,-1374.95,0.00022739,2]
[372274713,1752570668845,-564.3885609,0.00022739,2]
[372274714,1752570668854,-1370.99,0.00022739,2]
[372274715,1752570668865,-740.23,0.00022739,2]
[372274716,1752570668874,-460.0,0.00022739,2]
[372274717,1752570668884,-6066.63,0.00022739,2]
[372274718,1752570668893,-5988.09,0.00022739,2]
[372274719,1752570668902,-460.0,0.00022739,2]
[372274720,1752570668912,-5429.84,0.00022739,2]
[372274721,1752570668923,-709.59,0.00022739,2]
[372274722,1752570668932,-736.32,0.00022739,2]
[372274723,1752570668943,-1557.24,0.00022739,2]
[372274724,1752570668954,-1895.77,0.00022739,2]
[372274725,1752570668963,-460.0,0.00022739,2]
[372274726,1752570668972,-4034.47,0.00022739,2]
[372274727,1752570668984,-656.87,0.00022739,2]
[372274728,1752570668993,-813.36,0.00022739,2]
[372274729,1752570669002,-460.0,0.00022739,2]
[372274730,1752570669011,-684.57,0.00022739,2]
[372274731,1752570669021,-6650.37,0.00022739,2]
[372274732,1752570669030,-486.7,0.00022739,2]
[372274733,1752570669039,-3397.01,0.00022739,2]
[372274734,1752570669049,-914.28,0.00022739,2]
[372274735,1752570669058,-460.0,0.00022739,2]
[372274736,1752570669067,-593.68,0.00022739,2]
[372274737,1752570669077,-541.55,0.00022739,2]
[372274738,1752570669086,-701.5,0.00022739,2]
[372274739,1752570669095,-489.87,0.00022739,2]
[372274740,1752570669105,-460.0,0.00022739,2]
[372274741,1752570669114,-1182.25,0.00022739,2]
[372274742,1752570669123,-1976.96,0.00022739,2]
[372274743,1752570669134,-2295.41,0.00022739,2]
[372274744,1752570669366,-522.88,0.00022739,2]
[372274745,1752570669427,-665.64,0.00022739,2]
[372274746,1752570669443,-460.0,0.00022739,2]
[372274747,1752570669453,-151.0,0.00022739,7]
[372274748,1752570669463,-460.0,0.00022739,2]
[372274749,1752570669472,-170.065757,0.00022739,7]
[372274750,1752570669482,-1499.53,0.00022739,2]
[372274751,1752570669492,-170.065757,0.00022739,7]
[372274752,1752570669502,-151.0,0.00022739,7]
[372274753,1752570669511,-460.0,0.00022739,2]
[372274754,1752570669520,-819.29,0.00022739,2]
[372274755,1752570669530,-305.0144207,0.00022739,2]
[372274756,1752570669539,-460.0,0.00022739,2]
[372274757,1752570669549,-500.0,0.0002274,2]
[372274758,1752570669559,-10591.72515431,0.00022797,7]
[372274759,1752570669568,-500.0,0.00022926,2]
[372274760,1752570669578,-1956.55,0.00023,2]
[372274761,1752570669588,-160.0,0.00023,3]
[372274762,1752570669597,-215.50840239,0.00023,3]
[372274763,1752570669607,-160.0,0.00023,3]
[372274764,1752570669617,-160.0,0.00023,3]
[372274765,1752570669626,-178.0,0.00023,7]
[372274766,1752570669636,-838.84061749,0.00023,3]
[372274767,1752570669646,-525.51022752,0.00023,3]
[372274768,1752570669656,-230.76969291,0.00023,3]
[372274769,1752570669665,-160.0,0.00023,3]
[372274770,1752570669675,-160.0,0.00023,3]
[372274771,1752570669685,-160.0,0.00023,3]
[372274772,1752570669695,-10591.72515431,0.00023003,8]
[372274773,1752570669706,-460.0,0.00023013,2]
[372274774,1752570669715,-151.0,0.00023013,7]
[372274775,1752570669724,-151.0,0.00023013,7]
[372274776,1752570669733,-151.0,0.00023013,7]
[372274777,1752570669743,-545.05,0.00023013,2]
[372274778,1752570669753,-151.0,0.00023013,7]
[372274779,1752570669762,-518.56,0.00023013,2]
[372274780,1752570669772,-460.0,0.00023013,2]
[372274781,1752570669782,-929.48,0.00023013,2]
[372274782,1752570669791,-460.0,0.00023013,2]
[372274783,1752570669801,-460.0,0.00023013,2]
[372274784,1752570669810,-541.79,0.00023013,2]
[372274785,1752570669823,-524.06,0.00023013,2]
[372274786,1752570669834,-329.81991168,0.00023013,2]
[372274787,1752570669843,-734.04,0.00023013,2]
[372274788,1752570669854,-522.35729271,0.00023013,2]
[372274789,1752570669863,-542.32,0.00023013,2]
[372274790,1752570669873,-804.19,0.00023013,2]
[372274791,1752570669883,-898.07,0.00023013,2]
[372274792,1752570669893,-898.31,0.00023013,2]
[372274793,1752570669902,-460.0,0.00023013,2]
[372274794,1752570669912,-891.43,0.00023013,2]
[372274795,1752570669921,-460.0,0.00023013,2]
[372274796,1752570669931,-460.0,0.00023013,2]
[372274797,1752570669943,-470.67,0.00023013,2]
[372274798,1752570669953,-471.48,0.00023013,2]
[372274799,1752570669963,-460.0,0.00023013,2]
[372274800,1752570669973,-460.0,0.00023013,2]
[372274801,1752570669986,-460.0,0.00023013,2]
[372274802,1752570669996,-303.44,0.00023013,2]
[372274803,1752570670006,-1355.61,0.00023013,2]
[372274804,1752570670015,-460.0,0.00023013,2]
[372274805,1752570670026,-669.96,0.00023013,2]
[372274806,1752570670035,-1420.46,0.00023013,2]
[372274807,1752570670044,-460.0,0.00023013,2]
[372274808,1752570670054,-730.02,0.00023013,2]
[372274809,1752570670064,-460.0,0.00023013,2]
[372274810,1752570670074,-460.0,0.00023013,2]
[372274811,1752570670084,-862.35,0.00023013,2]
[372274812,1752570670093,-2209.63,0.00023013,2]
[372274813,1752570670103,-460.0,0.00023013,2]
[372274814,1752570670112,-460.0,0.00023013,2]
[372274815,1752570670121,-524.72,0.00023013,2]
[372274816,1752570670131,-460.0,0.00023013,2]
[372274817,1752570670141,-1374.95,0.00023013,2]
[372274818,1752570670154,-1370.99,0.00023013,2]
[372274819,1752570670163,-740.23,0.00023013,2]
[372274820,1752570670172,-460.0,0.00023013,2]
[372274821,1752570670182,-6066.63,0.00023013,2]
[372274822,1752570670191,-5988.09,0.00023013,2]
[372274823,1752570670201,-460.0,0.00023013,2]
[372274824,1752570670210,-5429.84,0.00023013,2]
[372274825,1752570670220,-709.59,0.00023013,2]
[372274826,1752570670230,-736.32,0.00023013,2]
[372274827,1752570670240,-1557.24,0.00023013,2]
[372274828,1752570670250,-1895.77,0.00023013,2]
[372274829,1752570670259,-460.0,0.00023013,2]
[372274830,1752570670269,-4034.47,0.00023013,2]
[372274831,1752570670281,-656.87,0.00023013,2]
[372274832,1752570670291,-813.36,0.00023013,2]
[372274833,1752570670300,-460.0,0.00023013,2]
[372274834,1752570670310,-684.57,0.00023013,2]
[372274835,1752570670319,-6650.37,0.00023013,2]
[372274836,1752570670329,-486.7,0.00023013,2]
[372274837,1752570670338,-3397.01,0.00023013,2]
[372274838,1752570670348,-914.28,0.00023013,2]
[372274839,1752570670358,-514.63,0.00023013,2]
[372274840,1752570670368,-593.68,0.00023013,2]
[372274841,1752570670377,-541.55,0.00023013,2]
[372274842,1752570670387,-701.5,0.00023013,2]
[372274843,1752570670396,-489.87,0.00023013,2]
[372274844,1752570670407,-460.0,0.00023013,2]
[372274845,1752570670418,-1182.25,0.00023013,2]
[372274846,1752570670428,-1976.96,0.00023013,2]
[372274847,1752570670438,-2295.41,0.00023013,2]
[372274848,1752570670448,-522.88,0.00023013,2]
[372274849,1752570670458,-665.64,0.00023013,2]
[372274850,1752570670467,-460.0,0.00023013,2]
[372274851,1752570670479,-460.0,0.00023013,2]
[372274852,1752570670489,-1499.53,0.00023013,2]
[372274853,1752570670500,-460.0,0.00023013,2]
[372274854,1752570670516,-819.29,0.00023013,2]
[372274855,1752570670525,-460.0,0.00023013,2]
[372274856,1752570670535,-391.0,0.00023014,7]
[372274857,1752570670545,-760.0,0.00023196,2]
[372274858,1752570670554,-151.0,0.000232,7]
[372274859,1752570670563,-151.0,0.000232,7]
[372274860,1752570670573,-151.0,0.000232,7]
[372274861,1752570670582,-151.0,0.000232,7]
[372274862,1752570670592,-151.0,0.000232,7]
[372274863,1752570670602,-710.478074,0.000232,7]
[372274864,1752570670612,-710.478074,0.000232,7]
[372274865,1752570670622,-151.0,0.000232,7]
[372274866,1752570670631,-5915.81043378,0.000232,7]
[372274867,1752570670650,-1905.32326313,0.000232,7]
[372274868,1752570670662,-748.246198,0.000232,7]
[372274869,1752570670673,-22491.16010509,0.000232,7]
[372274870,1752570670683,-779.28205371,0.00023204,2]
[372274871,1752570670694,-10591.72515431,0.0002321,8]
[372274872,1752570670703,-223.0315306,0.00023275,2]
[372274873,1752570670713,-460.0,0.00023287,2]
[372274874,1752570670723,-518.56,0.00023287,2]
[372274875,1752570670733,-460.0,0.00023287,2]
[372274876,1752570670743,-929.48,0.00023287,2]
[372274877,1752570670753,-460.0,0.00023287,2]
[372274878,1752570670763,-460.0,0.00023287,2]
[372274879,1752570670773,-541.79,0.00023287,2]
[372274880,1752570670782,-524.06,0.00023287,2]
[372274881,1752570670793,-734.04,0.00023287,2]
[372274882,1752570670803,-542.32,0.00023287,2]
[372274883,1752570670813,-804.19,0.00023287,2]
[372274884,1752570670823,-898.07,0.00023287,2]
[372274885,1752570670833,-898.31,0.00023287,2]
[372274886,1752570670844,-151.0,0.00023287,7]
[372274887,1752570670854,-460.0,0.00023287,2]
[372274888,1752570670864,-891.43,0.00023287,2]
[372274889,1752570670876,-460.0,0.00023287,2]
[372274890,1752570670886,-485.04,0.00023287,2]
[372274891,1752570670897,-470.67,0.00023287,2]
[372274892,1752570670909,-471.48,0.00023287,2]
[372274893,1752570670919,-460.0,0.00023287,2]
[372274894,1752570670929,-460.0,0.00023287,2]
[372274895,1752570670939,-460.0,0.00023287,2]
[372274896,1752570670950,-1355.61,0.00023287,2]
[372274897,1752570670960,-460.0,0.00023287,2]
[372274898,1752570670969,-151.0,0.00023287,7]
[372274899,1752570670980,-669.96,0.00023287,2]
[372274900,1752570670994,-1420.46,0.00023287,2]
[372274901,1752570671004,-151.0,0.00023287,7]
[372274902,1752570671013,-460.0,0.00023287,2]
[372274903,1752570671023,-730.02,0.00023287,2]
[372274904,1752570671033,-460.0,0.00023287,2]
[372274905,1752570671043,-862.35,0.00023287,2]
[372274906,1752570671053,-2209.63,0.00023287,2]
[372274907,1752570671064,-460.0,0.00023287,2]
[372274908,1752570671073,-460.0,0.00023287,2]
[372274909,1752570671083,-524.72,0.00023287,2]
[372274910,1752570671093,-460.0,0.00023287,2]
[372274911,1752570671103,-1374.95,0.00023287,2]
[372274912,1752570671114,-1370.99,0.00023287,2]
[372274913,1752570671123,-740.23,0.00023287,2]
[372274914,1752570671133,-460.0,0.00023287,2]
[372274915,1752570671142,-6066.63,0.00023287,2]
[372274916,1752570671151,-5988.09,0.00023287,2]
[372274917,1752570671161,-151.0,0.00023287,7]
[372274918,1752570671171,-151.0,0.00023287,7]
[372274919,1752570671181,-5429.84,0.00023287,2]
[372274920,1752570671191,-709.59,0.00023287,2]
[372274921,1752570671202,-736.32,0.00023287,2]
[372274922,1752570671211,-1557.24,0.00023287,2]
[372274923,1752570671221,-1895.77,0.00023287,2]
[372274924,1752570671231,-460.0,0.00023287,2]
[372274925,1752570671241,-4034.47,0.00023287,2]
[372274926,1752570671250,-151.0,0.00023287,7]
[372274927,1752570671260,-656.87,0.00023287,2]
[372274928,1752570671269,-813.36,0.00023287,2]
[372274929,1752570671279,-460.0,0.00023287,2]
[372274930,1752570671288,-684.57,0.00023287,2]
[372274931,1752570671298,-6650.37,0.00023287,2]
[372274932,1752570671307,-486.7,0.00023287,2]
[372274933,1752570671317,-167.111924,0.00023287,7]
[372274934,1752570671326,-3397.01,0.00023287,2]
[372274935,1752570671336,-167.111924,0.00023287,7]
[372274936,1752570671345,-914.28,0.00023287,2]
[372274937,1752570671355,-151.0,0.00023287,7]
[372274938,1752570671365,-151.0,0.00023287,7]
[372274939,1752570671374,-593.68,0.00023287,2]
[372274940,1752570671384,-541.55,0.00023287,2]
[372274941,1752570671393,-701.5,0.00023287,2]
[372274942,1752570671403,-489.87,0.00023287,2]
[372274943,1752570671413,-460.0,0.00023287,2]
[372274944,1752570671423,-1182.25,0.00023287,2]
[372274945,1752570671432,-1976.96,0.00023287,2]
[372274946,1752570671442,-2295.41,0.00023287,2]
[372274947,1752570671455,-522.88,0.00023287,2]
[372274948,1752570671464,-665.64,0.00023287,2]
[372274949,1752570671475,-460.0,0.00023287,2]
[372274950,1752570671484,-460.0,0.00023287,2]
[372274951,1752570671495,-1499.53,0.00023287,2]
[372274952,1752570671505,-1232.714955,0.00023287,7]
[372274953,1752570671516,-1232.714955,0.00023287,7]
[372274954,1752570671526,-460.0,0.00023287,2]
[372274955,1752570671537,-819.29,0.00023287,2]
[372274956,1752570671547,-775.161209,0.00023287,7]
[372274957,1752570671557,-775.161209,0.00023287,7]
[372274958,1752570671566,-460.0,0.00023287,2]
[372274959,1752570671577,-24772.2888707,0.000233,2]
[372274960,1752570671718,-460.0,0.00019178,2]
[372274961,1752570671729,-460.0,0.00019452,2]
[372274962,1752570671740,-160.0,0.0002046,2]
[372274963,1752570671750,-6947.8011293,0.000233,2]
[372274964,1752570671761,-5127.67956469,0.00023325,2]
[372274965,1752570671777,-2261.70305024,0.00023325,2]
[372274966,1752570671787,-500.0,0.00023326,2]
[372274967,1752570671798,-168.0,0.00023356,2]
[372274968,1752570671807,-5071.39562043,0.00023417,9]
[372274969,1752570686317,170.0,0.00024,120]
[372274970,1752570687939,170.0,0.000251,120]
[372274971,1752570690316,170.0,0.000262,120]
[372274972,1752570699902,1500.54,0.00024658,60]
[372274987,1752571211070,500.0,0.00027397,120]
[372275002,1752571220322,500.0,0.00027397,120]
[372275005,1752571252223,150.0,0.00016976,2]
[372275013,1752571318106,150.0,0.00017227,2]
[372275017,1752571363420,1032.165849,0.00027397,120]
[372275022,1752571432759,157.665771,0.00013699,2]
[372275040,1752571540143,-160.0,0.00018519,2]
[372275041,1752571540165,-558.4,0.00018668,3]
[372275042,1752571540186,-501.5911219,0.00018673,2]
[372275043,1752571540212,-138.49397512,0.00018673,2]
[372275056,1752571625088,-865.20349278,0.00018672,2]
[372275060,1752571633137,-334.79650722,0.00018672,2]
[372275061,1752571633170,-300.0,0.00018672,2]
[372275062,1752571633190,-500.0,0.00018673,2]
[372275063,1752571633211,-455.81838022,0.00018673,2]
[372275071,1752571715473,1002.52127058,0.00025525,60]
[372275074,1752571717563,849.19328373,0.00025525,120]
[372275075,1752571719921,3535.49661431,0.0002,20]
[372275076,1752571719949,1897.83816435,0.0002,20]
[372275077,1752571720331,730.35141962,0.00024,60]
[372275078,1752571720830,2747.01101041,0.000212,30]
[372275079,1752571721098,157.06820245,0.00025525,120]
[372275082,1752571721953,2749.63737327,0.00025525,120]
[372275083,1752571722924,246.76082451,0.00025525,120]
[372275084,1752571723130,1063.82955666,0.00025525,120]
[372275086,1752571724241,210.7422279,0.00025525,120]
[372275087,1752571724299,1086.72612881,0.00025525,120]
[372275088,1752571725556,527.64643172,0.00025525,120]
[372275089,1752571725675,185.68215319,0.00025,120]
[372275090,1752571726293,1358.78719647,0.00024,120]
[372275091,1752571726700,4013.48237553,0.00025525,120]
[372275092,1752571727035,513.40253681,0.00025525,120]
[372275093,1752571729424,256.64732298,0.00025525,60]
[372275094,1752571729457,634.09748933,0.00027,120]
[372275099,1752571765898,1000.0,0.00027,120]
[372275100,1752571766901,1000.0,0.00027,120]
[372275101,1752571767617,1000.0,0.00027,120]
[372275102,1752571768310,1000.0,0.00027,120]
[372275406,1752571832618,-1538.52183164,0.000186,2]
[372275408,1752571832628,-151.0,0.00018672,2]
[372275409,1752571832638,-224.0,0.00018672,2]
[372275411,1752571832647,-300.0,0.00018672,2]
[372275412,1752571832657,-300.0,0.00018672,2]
[372275413,1752571832666,-1200.0,0.00018672,2]
[372275415,1752571832676,-44.18161978,0.00018673,2]
[372275417,1752571832685,-573.35999234,0.00018673,2]
[372275420,1752571832694,-500.0,0.00018673,2]
[372275422,1752571832704,-500.0,0.00018673,2]
[372275426,1752571832714,-500.0,0.00018673,2]
[372275429,1752571832723,-500.0,0.00018673,2]
[372275433,1752571832732,-500.0,0.00018673,2]
[372275436,1752571832741,-468.51044187,0.00018673,2]
[372275438,1752571832751,-500.0,0.00018673,2]
[372275440,1752571832760,-267159.55402169,0.00018678,2]
[372275441,1752571832772,-2064.5055936,0.00018678,2]
[372275443,1752571832783,-461.4225,0.00018678,2]
[372275444,1752571832794,-454.88383167,0.00018678,2]
[372275446,1752571832814,-34723.83808957,0.00018678,2]
[372275448,1752571832825,-1540.06268694,0.00018678,2]
[372275449,1752571832839,-14629.44075055,0.00018678,2]
[372275640,1752571838625,-260.03705514,0.00018678,2]
[372275641,1752571838687,-7838.56611319,0.00018678,2]
[372275642,1752571838699,-4344.98524651,0.00018678,2]
[372275643,1752571838711,-278.21992796,0.00018678,2]
[372275644,1752571838748,-1222.39634548,0.00018678,2]
[372275645,1752571838760,-1351.37727208,0.00018678,2]
[372275646,1752571839023,-176.73498749,0.00018678,2]
[372275647,1752571839040,-33493.97557813,0.00018678,2]
[372275648,1752571839050,-211.43525888,0.00018904,2]
[372275649,1752571839059,-1538.52183162,0.00019004,2]
[372275650,1752571839069,-628.7217938,0.00019173,2]
[372275651,1752571839079,-50000.0,0.00019177,2]
[372275652,1752571839089,-500.00000001,0.00019177,2]
[372275653,1752571839099,-500.0,0.00019177,2]
[372275654,1752571839109,-500.0,0.00019177,2]
[372275655,1752571839118,-502.32014482,0.00019177,2]
[372275656,1752571839128,-504.85600732,0.00019177,2]
[372275657,1752571839137,-500.0,0.00019177,2]
[372275658,1752571839146,-500.0,0.00019177,2]
[372275659,1752571839156,-500.0,0.00019177,2]
[372275660,1752571839166,-167.27369066,0.00019177,2]
[372275661,1752571839176,-500.0,0.00019177,2]
[372275663,1752571839185,-500.0,0.00019177,2]
[372275664,1752571839195,-453.28280942,0.00019177,2]
[372275665,1752571839204,-500.0,0.00019177,2]
[372275666,1752571839214,-500.0,0.00019177,2]
[372275667,1752571839223,-500.0,0.00019177,2]
[372275668,1752571839233,-500.0,0.00019177,2]
[372275669,1752571839243,-500.0,0.00019177,2]
[372275670,1752571839253,-500.0,0.00019177,2]
[372275671,1752571839262,-500.0,0.00019177,2]
[372275672,1752571839271,-500.0,0.00019177,2]
[372275673,1752571839285,-500.0,0.00019177,2]
[372275674,1752571839295,-500.0,0.00019177,2]
[372275675,1752571839305,-500.0,0.00019177,2]
[372275676,1752571839315,-500.0,0.00019177,2]
[372275677,1752571839325,-500.0,0.00019177,2]
[372275678,1752571839335,-357.4955089,0.00019177,2]
[372275679,1752571839345,-500.0,0.00019177,2]
[372275680,1752571839354,-500.0,0.00019177,2]
[372275681,1752571839366,-500.0,0.00019177,2]
[372275682,1752571839376,-610.13314836,0.00019177,2]
[372275683,1752571839386,-500.0,0.00019177,2]
[372275685,1752571839395,-468.69439394,0.00019177,2]
[372275686,1752571839405,-500.0,0.00019177,2]
[372275687,1752571839414,-500.0,0.00019177,2]
[372275688,1752571839424,-558.97135217,0.00019177,2]
[372275689,1752571839433,-500.0,0.00019177,2]
[372275690,1752571839443,-500.0,0.00019177,2]
[372275691,1752571839453,-500.0,0.00019177,2]
[372275692,1752571839462,-500.0,0.00019177,2]
[372275693,1752571839471,-500.0,0.00019177,2]
[372275694,1752571839480,-500.0,0.00019177,2]
[372275695,1752571839490,-500.0,0.00019177,2]
[372275696,1752571839499,-500.0,0.00019177,2]
[372275697,1752571839508,-500.0,0.00019177,2]
[372275698,1752571839518,-500.0,0.00019177,2]
[372275699,1752571839527,-500.0,0.00019177,2]
[372275700,1752571839537,-500.0,0.00019177,2]
[372275701,1752571839546,-500.0,0.00019177,2]
[372275702,1752571839556,-306.99262321,0.00019177,2]
[372275703,1752571839565,-500.0,0.00019177,2]
[372275704,1752571839575,-500.0,0.00019177,2]
[372275705,1752571839585,-500.0,0.00019177,2]
[372275706,1752571839595,-500.0,0.00019177,2]
[372275707,1752571839604,-500.0,0.00019177,2]
[372275708,1752571839614,-500.0,0.00019177,2]
[372275709,1752571839623,-500.0,0.00019177,2]
[372275710,1752571839632,-500.0,0.00019177,2]
[372275711,1752571839642,-500.0,0.00019177,2]
[372275712,1752571839651,-500.0,0.00019177,2]
[372275713,1752571839661,-500.0,0.00019177,2]
[372275714,1752571839670,-500.0,0.00019177,2]
[372275715,1752571839680,-173.21903913,0.00019177,2]
[372275716,1752571839689,-460.0,0.00019178,2]
[372275717,1752571839699,-460.0,0.00019178,2]
[372275718,1752571839709,-460.0,0.00019178,2]
[372275719,1752571839719,-339.15199671,0.00019178,2]
[372275720,1752571839728,-460.0,0.00019178,2]
[372275721,1752571839737,-460.0,0.00019178,2]
[372275722,1752571839748,-460.0,0.00019178,2]
[372275723,1752571839757,-460.0,0.00019178,2]
[372275724,1752571839767,-460.0,0.00019178,2]
[372275725,1752571839776,-460.0,0.00019178,2]
[372275726,1752571839786,-451.10603502,0.00019178,2]
[372275727,1752571839795,-460.0,0.00019178,2]
[372275728,1752571839804,-460.0,0.00019178,2]
[372275729,1752571839814,-460.0,0.00019178,2]
[372275730,1752571839824,-460.0,0.00019178,2]
[372275731,1752571839835,-460.0,0.00019178,2]
[372275732,1752571839845,-460.0,0.00019178,2]
[372275733,1752571839855,-463.00299649,0.00019178,2]
[372275734,1752571839865,-460.0,0.00019178,2]
[372275735,1752571839874,-589.59746436,0.00019178,2]
[372275736,1752571839884,-567.39,0.00019178,2]
[372275737,1752571839893,-567.39,0.00019178,2]
[372275738,1752571839903,-460.0,0.00019178,2]
[372275739,1752571839914,-465.46483809,0.00019178,2]
[372275740,1752571839924,-1000.0,0.00019178,2]
[372275741,1752571839933,-460.0,0.00019178,2]
[372275742,1752571839944,-460.0,0.00019178,2]
[372275743,1752571839953,-460.0,0.00019178,2]
[372275744,1752571839964,-460.0,0.00019178,2]
[372275746,1752571839974,-460.0,0.00019178,2]
[372275747,1752571839984,-460.0,0.00019178,2]
[372275748,1752571839993,-460.0,0.00019178,2]
[372275749,1752571840002,-460.0,0.00019178,2]
[372275750,1752571840012,-460.0,0.00019178,2]
[372275751,1752571840021,-461.20108132,0.00019178,2]
[372275752,1752571840030,-460.0,0.00019178,2]
[372275753,1752571840041,-460.0,0.00019178,2]
[372275755,1752571840050,-460.0,0.00019178,2]
[372275756,1752571840060,-464.46585055,0.00019178,2]
[372275757,1752571840069,-460.0,0.00019178,2]